fUSD/lending_fUSD_20241223
["ID","MTS","AMOUNT","RATE_DAILY","PERIOD"]
[346421423,1734954670669,-27647.07946893,0.00019477,2]
[346421424,1734954670678,-150.0,0.00019477,2]
[346421425,1734954670688,-150.0,0.00019477,2]
[346421426,1734954670697,-2262.5065657,0.00019478,2]
[346421427,1734954670707,-8523.63585874,0.00019479,2]
[346421428,1734954670717,-14542.57798564,0.00019479,2]
[346421429,1734954670727,-200.0,0.00019479,2]
[346421430,1734954670738,-200.0,0.0001948,2]
[346421431,1734954670747,-2528.82765631,0.0001948,2]
[346421432,1734954670757,-150.0,0.0001948,2]
[346421433,1734954670766,-26209.00296658,0.0001948,2]
[346421434,1734954670775,-845.86816061,0.0001948,2]
[346421435,1734954670785,-4866.68080818,0.00019481,2]
[346421436,1734954670794,-845.86816061,0.00019482,2]
[346421437,1734954670804,-3130.56464653,0.00019482,2]
[346421438,1734954670813,-7586.48296892,0.00019483,2]
[346421439,1734954670823,-14542.57798564,0.00019483,2]
[346421440,1734954670833,-2262.5065657,0.00019486,2]
[346421441,1734954670842,-13104.50148329,0.00019486,2]
[346421442,1734954670852,-8523.63585874,0.00019486,2]
[346421443,1734954670861,-200.0,0.00019486,2]
[346421444,1734954670872,-3130.56464653,0.00019487,2]
[346421445,1734954670882,-3130.56464653,0.00019487,2]
[346421446,1734954670891,-150.0,0.00019488,2]
[346421447,1734954670901,-5057.65531261,0.00019489,2]
[346421448,1734954670910,-13104.50148329,0.0001949,2]
[346421449,1734954670920,-150.0,0.00019491,2]
[346421450,1734954670929,-5057.65531261,0.00019492,2]
[346421451,1734954670939,-2262.5065657,0.00019492,2]
[346421452,1734954670949,-2528.82765631,0.00019493,2]
[346421453,1734954670958,-1196.10947269,0.00019493,2]
[346421454,1734954670967,-27647.07946893,0.00019494,2]
[346421455,1734954670978,-14542.57798564,0.00019494,2]
[346421456,1734954670988,-2528.82765631,0.00019495,2]
[346421457,1734954670998,-8523.63585874,0.00019495,2]
[346421458,1734954671009,-5057.65531261,0.00019495,2]
[346421459,1734954671020,-4866.68080818,0.00019496,2]
[346421460,1734954671029,-5980.54736343,0.00019498,2]
[346421461,1734954671042,-2528.82765631,0.00019498,2]
[346421462,1734954671052,-3130.56464653,0.00019498,2]
[346421463,1734954671062,-1196.10947269,0.00019498,2]
[346421464,1734954671071,-5980.54736343,0.00019498,2]
[346421465,1734954671081,-13104.50148329,0.00019498,2]
[346421466,1734954671092,-1196.10947269,0.00019498,2]
[346421467,1734954671101,-2262.5065657,0.00019499,2]
[346421468,1734954671110,-6177.0903915,0.000195,2]
[346421469,1734954671120,-38092.98930791,0.000195,2]
[346421470,1734954671129,-250.0,0.000195,2]
[346421471,1734954671139,-250.0,0.000195,2]
[346421472,1734954671149,-250.0,0.000195,2]
[346421473,1734954671158,-250.0,0.000195,2]
[346421474,1734954671168,-250.0,0.000195,2]
[346421475,1734954671177,-250.0,0.000195,2]
[346421476,1734954671186,-250.0,0.000195,2]
[346421477,1734954671196,-250.0,0.000195,2]
[346421478,1734954671206,-250.0,0.000195,2]
[346421479,1734954671216,-250.0,0.000195,2]
[346421480,1734954671225,-250.0,0.000195,2]
[346421481,1734954671236,-250.0,0.000195,2]
[346421482,1734954671246,-250.0,0.000195,2]
[346421483,1734954671256,-250.0,0.000195,2]
[346421484,1734954671265,-250.0,0.000195,2]
[346421485,1734954671275,-250.0,0.000195,2]
[346421486,1734954671285,-250.0,0.000195,2]
[346421487,1734954671294,-250.0,0.000195,2]
[346421488,1734954671304,-250.0,0.000195,2]
[346421489,1734954671313,-250.0,0.000195,2]
[346421490,1734954671323,-250.0,0.000195,2]
[346421491,1734954671332,-250.0,0.000195,2]
[346421492,1734954671342,-250.0,0.000195,2]
[346421493,1734954671351,-250.0,0.000195,2]
[346421494,1734954671360,-250.0,0.000195,2]
[346421495,1734954671370,-250.0,0.000195,2]
[346421496,1734954671379,-250.0,0.000195,2]
[346421497,1734954671389,-250.0,0.000195,2]
[346421498,1734954671398,-250.0,0.000195,2]
[346421499,1734954671408,-250.0,0.000195,2]
[346421500,1734954671417,-250.0,0.000195,2]
[346421501,1734954671426,-250.0,0.000195,2]
[346421502,1734954671436,-250.0,0.000195,2]
[346421503,1734954671446,-250.0,0.000195,2]
[346421504,1734954671455,-250.0,0.000195,2]
[346421505,1734954671465,-250.0,0.000195,2]
[346421506,1734954671474,-250.0,0.000195,2]
[346421507,1734954671485,-250.0,0.000195,2]
[346421508,1734954671495,-462.7,0.000195,2]
[346421509,1734954671503,-151.0,0.000195,2]
[346421510,1734954671513,-1500.0,0.00019503,2]
[346421511,1734954671523,-152.07639963,0.00019507,2]
[346421512,1734954671532,-152.07639964,0.00019507,2]
[346421513,1734954671542,-207.0,0.0001951,2]
[346421514,1734954671551,-150.0,0.00019514,2]
[346421515,1734954671560,-150.0,0.00019517,2]
[346421516,1734954671570,-150.0,0.0001953,2]
[346421517,1734954671677,-1000.0,0.00019534,2]
[346421518,1734954671687,-1000.0,0.00019534,2]
[346421519,1734954671696,-1000.0,0.00019534,2]
[346421520,1734954671706,-1000.0,0.00019534,2]
[346421521,1734954671715,-1000.0,0.00019534,2]
[346421522,1734954671724,-1000.0,0.00019534,2]
[346421523,1734954671734,-1000.0,0.00019534,2]
[346421524,1734954671743,-1000.0,0.00019534,2]
[346421525,1734954671753,-1060.41384629,0.00019534,2]
[346421526,1734954671763,-231.21580398,0.00019534,2]
[346421527,1734954671772,-304.15279927,0.00019534,2]
[346421528,1734954671782,-202.76853285,0.00019534,2]
[346421529,1734954671791,-304.15279928,0.00019534,2]
[346421530,1734954671800,-202.76853285,0.00019534,2]
[346421531,1734954671810,-150.0,0.00019535,2]
[346421532,1734954671819,-150.0,0.00019541,2]
[346421533,1734954671828,-1052.34,0.00019547,2]
[346421534,1734954671837,-150.0,0.00019548,2]
[346421535,1734954671846,-151.0,0.00019551,2]
[346421536,1734954671855,-151.0,0.00019551,2]
[346421537,1734954671864,-150.0,0.00019559,2]
[346421538,1734954671874,-164.87154374,0.00019562,2]
[346421539,1734954671883,-150.0,0.00019565,2]
[346421540,1734954671892,-150.0,0.00019566,2]
[346421541,1734954671902,-150.0,0.00019568,2]
[346421542,1734954671911,-150.0,0.0001957,2]
[346421543,1734954671920,-200.0,0.00019576,2]
[346421544,1734954671929,-200.0,0.00019576,2]
[346421545,1734954671938,-200.0,0.00019576,2]
[346421546,1734954671947,-2000.0,0.00019576,2]
[346421547,1734954671956,-200.0,0.00019576,2]
[346421548,1734954671965,-182.482872,0.00019577,2]
[346421549,1734954671975,-13184.04,0.00019578,4]
[346421550,1734954671985,-201.53,0.00019578,2]
[346421551,1734954671994,-200.77,0.00019578,2]
[346421552,1734954672003,-200.85,0.00019578,2]
[346421553,1734954672016,-200.87,0.00019578,2]
[346421554,1734954672025,-201.58,0.00019578,2]
[346421555,1734954672034,-200.4,0.00019578,2]
[346421556,1734954672043,-153.14358359,0.00019582,2]
[346421557,1734954672052,-150.0,0.00019587,2]
[346421558,1734954672062,-150.0,0.00019596,2]
[346421559,1734954672071,-150.0,0.00019597,2]
[346421560,1734954672080,-52739.60756904,0.00019599,2]
[346421561,1734954672089,-5066.0,0.000196,2]
[346421562,1734954672099,-150.0,0.00019603,2]
[346421563,1734954672108,-150.0,0.00019608,2]
[346421564,1734954672116,-1500.0,0.0001961,2]
[346421565,1734954672125,-231.21580398,0.00019616,2]
[346421566,1734954672133,-304.15279927,0.00019616,2]
[346421567,1734954672142,-202.76853285,0.00019616,2]
[346421568,1734954672151,-304.15279928,0.00019616,2]
[346421569,1734954672160,-202.76853285,0.00019616,2]
[346421570,1734954672169,-150.0,0.00019625,2]
[346421571,1734954672178,-150.0,0.00019633,2]
[346421572,1734954672187,-150.0,0.00019633,2]
[346421573,1734954672195,-150.0,0.00019633,2]
[346421574,1734954672204,-150.0,0.00019636,2]
[346421575,1734954672213,-150.0,0.00019641,2]
[346421576,1734954672222,-152.07639963,0.00019644,2]
[346421577,1734954672231,-152.07639964,0.00019644,2]
[346421578,1734954672241,-150.0,0.00019646,2]
[346421579,1734954672251,-150.0,0.00019647,2]
[346421580,1734954672260,-150.0,0.00019648,2]
[346421581,1734954672270,-1500.0,0.0001965,2]
[346421582,1734954672280,-150.0,0.00019651,2]
[346421583,1734954672289,-1500.0,0.00019653,2]
[346421584,1734954672298,-150.0,0.00019654,2]
[346421585,1734954672308,-150.0,0.00019655,2]
[346421586,1734954672317,-150.0,0.00019663,2]
[346421587,1734954672326,-150.0,0.00019668,2]
[346421588,1734954672335,-150.0,0.0001967,2]
[346421589,1734954672345,-150.0,0.00019671,2]
[346421590,1734954672355,-314.85703271,0.00019673,2]
[346421591,1734954672364,-518.3075881,0.00019673,2]
[346421592,1734954672374,-500.0,0.00019673,2]
[346421593,1734954672383,-503.52047912,0.00019673,2]
[346421594,1734954672392,-500.0,0.00019673,2]
[346421595,1734954672401,-500.0,0.00019673,2]
[346421596,1734954672411,-500.0,0.00019673,2]
[346421597,1734954672420,-515.46043374,0.00019673,2]
[346421598,1734954672429,-516.52858484,0.00019673,2]
[346421599,1734954672438,-200.77,0.00019678,2]
[346421600,1734954672447,-150.0,0.00019684,2]
[346421601,1734954672457,-1052.34,0.00019684,2]
[346421602,1734954672466,-1500.0,0.00019684,2]
[346421603,1734954672475,-150.0,0.00019686,2]
[346421604,1734954672484,-150.0,0.00019693,2]
[346421605,1734954672494,-150.0,0.00019693,2]
[346421606,1734954672503,-152.0,0.00019696,4]
[346421607,1734954672512,-231.21580398,0.00019699,2]
[346421608,1734954672522,-304.15279927,0.00019699,2]
[346421609,1734954672531,-202.76853285,0.00019699,2]
[346421610,1734954672540,-304.15279928,0.00019699,2]
[346421611,1734954672550,-202.76853285,0.00019699,2]
[346421612,1734954672559,-300.0,0.00019699,2]
[346421613,1734954672568,-1848465.25220721,0.000197,2]
[346421614,1734954672577,-10005.55957651,0.000197,2]
[346421615,1734954672587,-12119.31579504,0.000197,2]
[346421616,1734954672596,-151.0,0.000197,2]
[346421617,1734954672606,-151.0,0.000197,2]
[346421618,1734954672615,-258.915899,0.000197,2]
[346421619,1734954672624,-152.00346,0.000197,2]
[346421620,1734954672634,-152.00346,0.000197,2]
[346421621,1734954672643,-151.0,0.000197,2]
[346421622,1734954672653,-195.899965,0.000197,2]
[346421623,1734954672662,-195.899965,0.000197,2]
[346421624,1734954672672,-151.0,0.000197,2]
[346421625,1734954672681,-151.0,0.000197,2]
[346421626,1734954672690,-151.0,0.000197,2]
[346421627,1734954672699,-151.0,0.000197,2]
[346421628,1734954672709,-151.0,0.000197,2]
[346421629,1734954672718,-151.0,0.000197,2]
[346421630,1734954672727,-151.0,0.000197,2]
[346421631,1734954672737,-201.608297,0.000197,2]
[346421632,1734954672746,-151.0,0.000197,2]
[346421633,1734954672755,-201.608297,0.000197,2]
[346421634,1734954672765,-151.0,0.000197,2]
[346421635,1734954672775,-1728.555243,0.000197,2]
[346421636,1734954672784,-1728.555243,0.000197,2]
[346421637,1734954672794,-1538.323078,0.000197,2]
[346421638,1734954672803,-1538.323078,0.000197,2]
[346421639,1734954672813,-151.0,0.000197,2]
[346421640,1734954672822,-151.0,0.000197,2]
[346421641,1734954672831,-151.0,0.000197,2]
[346421642,1734954672840,-239.048127,0.000197,2]
[346421643,1734954672849,-239.048127,0.000197,2]
[346421644,1734954672858,-311.600212,0.000197,2]
[346421645,1734954672867,-151.0,0.000197,2]
[346421646,1734954672877,-311.600212,0.000197,2]
[346421647,1734954672886,-425.961241,0.000197,2]
[346421648,1734954672896,-425.961241,0.000197,2]
[346421649,1734954672905,-206.374223,0.000197,2]
[346421650,1734954672916,-206.374223,0.000197,2]
[346421651,1734954672925,-151.0,0.000197,2]
[346421652,1734954672934,-1008.340565,0.000197,2]
[346421653,1734954672943,-1008.340565,0.000197,2]
[346421654,1734954672952,-151.0,0.000197,2]
[346421655,1734954672962,-151.0,0.000197,2]
[346421656,1734954672971,-10000.0,0.000197,2]
[346421657,1734954672980,-10000.0,0.000197,2]
[346421658,1734954672991,-4623.346877,0.000197,2]
[346421659,1734954673001,-235.4360076,0.00019721,2]
[346421660,1734954673015,-1000.0,0.00019721,2]
[346421661,1734954673027,-549.88230768,0.00019721,2]
[346421662,1734954673037,-1000.0,0.00019721,2]
[346421663,1734954673047,-1000.0,0.00019721,2]
[346421664,1734954673057,-151.0,0.00019726,2]
[346421665,1734954673066,-153.728547,0.00019726,2]
[346421666,1734954673076,-151.0,0.00019726,2]
[346421667,1734954673086,-152.00346,0.00019726,2]
[346421668,1734954673095,-152.00346288,0.00019726,2]
[346421669,1734954673104,-500.0,0.00019726,2]
[346421670,1734954673114,-500.0,0.00019726,2]
[346421671,1734954673123,-500.0,0.00019726,2]
[346421672,1734954673132,-500.0,0.00019726,2]
[346421673,1734954673141,-500.0,0.00019726,2]
[346421674,1734954673151,-500.0,0.00019726,2]
[346421675,1734954673160,-153.134472,0.00019726,2]
[346421676,1734954673169,-500.0,0.00019726,2]
[346421677,1734954673179,-151.0,0.00019726,2]
[346421678,1734954673189,-500.0,0.00019726,2]
[346421679,1734954673198,-195.899965,0.00019726,2]
[346421680,1734954673207,-151.0,0.00019726,2]
[346421681,1734954673217,-195.899959,0.00019726,2]
[346421682,1734954673227,-500.0,0.00019726,2]
[346421683,1734954673238,-569.86,0.00019726,2]
[346421684,1734954673247,-150.0,0.00019726,2]
[346421685,1734954673257,-151.0,0.00019726,2]
[346421686,1734954673266,-500.0,0.00019726,2]
[346421687,1734954673276,-151.0,0.00019726,2]
[346421688,1734954673285,-500.0,0.00019726,2]
[346421689,1734954673295,-216.105331,0.00019726,2]
[346421690,1734954673304,-5000.0,0.00019726,2]
[346421691,1734954673313,-957.85,0.00019726,2]
[346421692,1734954673322,-500.0,0.00019726,2]
[346421693,1734954673331,-504.39229834,0.00019726,2]
[346421694,1734954673341,-500.0,0.00019726,2]
[346421695,1734954673350,-500.0,0.00019726,2]
[346421696,1734954673359,-212.765062,0.00019726,2]
[346421697,1734954673368,-500.0,0.00019726,2]
[346421698,1734954673377,-500.0,0.00019726,2]
[346421699,1734954673387,-212.765062,0.00019726,2]
[346421700,1734954673396,-500.0,0.00019726,2]
[346421701,1734954673404,-500.0,0.00019726,2]
[346421702,1734954673413,-971.31,0.00019726,2]
[346421703,1734954673422,-500.0,0.00019726,2]
[346421704,1734954673431,-463.78722455,0.00019726,2]
[346421705,1734954673440,-747.84,0.00019726,2]
[346421706,1734954673449,-500.0,0.00019726,2]
[346421707,1734954673458,-151.0,0.00019726,2]
[346421708,1734954673467,-500.0,0.00019726,2]
[346421709,1734954673476,-500.0,0.00019726,2]
[346421710,1734954673486,-500.0,0.00019726,2]
[346421711,1734954673495,-500.0,0.00019726,2]
[346421712,1734954673503,-1103.1,0.00019726,2]
[346421713,1734954673512,-500.0,0.00019726,2]
[346421714,1734954673521,-500.0,0.00019726,2]
[346421715,1734954673530,-500.0,0.00019726,2]
[346421716,1734954673538,-578.42,0.00019726,2]
[346421717,1734954673547,-1058.94,0.00019726,2]
[346421718,1734954673556,-500.0,0.00019726,2]
[346421719,1734954673565,-500.0,0.00019726,2]
[346421720,1734954673574,-500.0,0.00019726,2]
[346421721,1734954673583,-500.0,0.00019726,2]
[346421722,1734954673592,-500.0,0.00019726,2]
[346421723,1734954673601,-500.0,0.00019726,2]
[346421724,1734954673610,-500.0,0.00019726,2]
[346421725,1734954673619,-887.42,0.00019726,2]
[346421726,1734954673628,-500.0,0.00019726,2]
[346421727,1734954673637,-515.51,0.00019726,2]
[346421728,1734954673647,-500.0,0.00019726,2]
[346421729,1734954673655,-500.0,0.00019726,2]
[346421730,1734954673664,-500.0,0.00019726,2]
[346421731,1734954673673,-500.0,0.00019726,2]
[346421732,1734954673682,-500.0,0.00019726,2]
[346421733,1734954673691,-500.0,0.00019726,2]
[346421734,1734954673700,-467.877855,0.00019726,2]
[346421735,1734954673708,-500.0,0.00019726,2]
[346421736,1734954673717,-1173.850645,0.00019726,2]
[346421737,1734954673726,-500.0,0.00019726,2]
[346421738,1734954673735,-500.0,0.00019726,2]
[346421739,1734954673744,-467.877855,0.00019726,2]
[346421740,1734954673754,-1284.56,0.00019726,2]
[346421741,1734954673763,-757.51,0.00019726,2]
[346421742,1734954673772,-500.0,0.00019726,2]
[346421743,1734954673781,-260.83297247,0.00019726,2]
[346421744,1734954673790,-500.0,0.00019726,2]
[346421745,1734954673799,-500.0,0.00019726,2]
[346421746,1734954673808,-500.0,0.00019726,2]
[346421747,1734954673817,-500.0,0.00019726,2]
[346421748,1734954673826,-151.0,0.00019726,2]
[346421749,1734954673835,-500.0,0.00019726,2]
[346421750,1734954673844,-500.0,0.00019726,2]
[346421751,1734954673852,-500.0,0.00019726,2]
[346421752,1734954673861,-500.0,0.00019726,2]
[346421753,1734954673870,-500.0,0.00019726,2]
[346421754,1734954673879,-500.0,0.00019726,2]
[346421755,1734954673888,-517.76819876,0.00019726,2]
[346421756,1734954673897,-500.0,0.00019726,2]
[346421757,1734954673906,-500.0,0.00019726,2]
[346421758,1734954673915,-500.0,0.00019726,2]
[346421759,1734954673924,-500.0,0.00019726,2]
[346421760,1734954673934,-500.0,0.00019726,2]
[346421761,1734954673943,-500.0,0.00019726,2]
[346421762,1734954673952,-500.0,0.00019726,2]
[346421763,1734954673962,-151.0,0.00019726,2]
[346421764,1734954673971,-238.12426596,0.00019726,2]
[346421765,1734954673980,-500.0,0.00019726,2]
[346421766,1734954673991,-500.0,0.00019726,2]
[346421767,1734954674001,-500.0,0.00019726,2]
[346421768,1734954674013,-712.78,0.00019726,2]
[346421769,1734954674023,-500.0,0.00019726,2]
[346421770,1734954674032,-500.0,0.00019726,2]
[346421771,1734954674041,-500.0,0.00019726,2]
[346421772,1734954674050,-500.0,0.00019726,2]
[346421773,1734954674059,-500.0,0.00019726,2]
[346421774,1734954674068,-587.44,0.00019726,2]
[346421775,1734954674077,-500.0,0.00019726,2]
[346421776,1734954674086,-500.0,0.00019726,2]
[346421777,1734954674095,-360.54336935,0.00019726,2]
[346421778,1734954674104,-151.0,0.00019726,2]
[346421779,1734954674114,-500.0,0.00019726,2]
[346421780,1734954674123,-500.0,0.00019726,2]
[346421781,1734954674131,-500.0,0.00019726,2]
[346421782,1734954674141,-611.7,0.00019726,2]
[346421783,1734954674150,-874.49,0.00019726,2]
[346421784,1734954674159,-500.0,0.00019726,2]
[346421785,1734954674168,-500.0,0.00019726,2]
[346421786,1734954674177,-500.0,0.00019726,2]
[346421787,1734954674186,-644.23,0.00019726,2]
[346421788,1734954674195,-1366.88,0.00019726,2]
[346421789,1734954674205,-500.0,0.00019726,2]
[346421790,1734954674214,-500.0,0.00019726,2]
[346421791,1734954674224,-500.0,0.00019726,2]
[346421792,1734954674233,-500.0,0.00019726,2]
[346421793,1734954674243,-500.0,0.00019726,2]
[346421794,1734954674252,-500.0,0.00019726,2]
[346421795,1734954674261,-572.32,0.00019726,2]
[346421796,1734954674271,-500.0,0.00019726,2]
[346421797,1734954674280,-921.58,0.00019726,2]
[346421798,1734954674289,-297.95717223,0.00019726,2]
[346421799,1734954674299,-500.0,0.00019726,2]
[346421800,1734954674308,-681.8,0.00019726,2]
[346421801,1734954674318,-500.0,0.00019726,2]
[346421802,1734954674328,-724.85,0.00019726,2]
[346421803,1734954674338,-467.18147493,0.00019726,2]
[346421804,1734954674347,-780.56,0.00019726,2]
[346421805,1734954674356,-1387.19,0.00019726,2]
[346421806,1734954674365,-500.0,0.00019726,2]
[346421807,1734954674374,-500.0,0.00019726,2]
[346421808,1734954674383,-615.92,0.00019726,2]
[346421809,1734954674392,-516.74613081,0.00019726,2]
[346421810,1734954674401,-500.0,0.00019726,2]
[346421811,1734954674410,-500.0,0.00019726,2]
[346421812,1734954674420,-500.0,0.00019726,2]
[346421813,1734954674429,-612.79,0.00019726,2]
[346421814,1734954674438,-845.85,0.00019726,2]
[346421815,1734954674447,-500.0,0.00019726,2]
[346421816,1734954674456,-500.0,0.00019726,2]
[346421817,1734954674466,-152.447089,0.00019726,2]
[346421818,1734954674474,-781.0,0.00019726,2]
[346421819,1734954674484,-500.0,0.00019726,2]
[346421820,1734954674494,-1397.77,0.00019726,2]
[346421821,1734954674503,-1333.95,0.00019726,2]
[346421822,1734954674512,-432.92301899,0.00019726,2]
[346421823,1734954674521,-500.0,0.00019726,2]
[346421824,1734954674530,-500.0,0.00019726,2]
[346421825,1734954674539,-505.1,0.00019726,2]
[346421826,1734954674548,-500.0,0.00019726,2]
[346421827,1734954674558,-500.0,0.00019726,2]
[346421828,1734954674567,-653.13,0.00019726,2]
[346421829,1734954674577,-500.0,0.00019726,2]
[346421830,1734954674586,-577.79,0.00019726,2]
[346421831,1734954674595,-512.96,0.00019726,2]
[346421832,1734954674605,-507.91881254,0.00019726,2]
[346421833,1734954674614,-606.77692346,0.00019726,2]
[346421834,1734954674624,-500.0,0.00019726,2]
[346421835,1734954674633,-1242.25,0.00019726,2]
[346421836,1734954674643,-500.0,0.00019726,2]
[346421837,1734954674652,-500.0,0.00019726,2]
[346421838,1734954674662,-500.0,0.00019726,2]
[346421839,1734954674672,-500.0,0.00019726,2]
[346421840,1734954674681,-500.0,0.00019726,2]
[346421841,1734954674691,-500.0,0.00019726,2]
[346421842,1734954674700,-200.0,0.00019726,2]
[346421843,1734954674710,-500.0,0.00019726,2]
[346421844,1734954674719,-500.0,0.00019726,2]
[346421845,1734954674728,-153.448794,0.00019726,2]
[346421846,1734954674739,-530.15,0.00019726,2]
[346421847,1734954674751,-500.0,0.00019726,2]
[346421848,1734954674760,-153.448794,0.00019726,2]
[346421849,1734954674770,-500.0,0.00019726,2]
[346421850,1734954674780,-812.31,0.00019726,2]
[346421851,1734954674789,-510.63,0.00019726,2]
[346421852,1734954674799,-500.0,0.00019726,2]
[346421853,1734954674809,-500.0,0.00019726,2]
[346421854,1734954674818,-625.46,0.00019726,2]
[346421855,1734954674828,-500.0,0.00019726,2]
[346421856,1734954674837,-500.0,0.00019726,2]
[346421857,1734954674847,-500.0,0.00019726,2]
[346421858,1734954674856,-500.0,0.00019726,2]
[346421859,1734954674865,-500.0,0.00019726,2]
[346421860,1734954674875,-500.0,0.00019726,2]
[346421861,1734954674884,-500.0,0.00019726,2]
[346421862,1734954674893,-500.0,0.00019726,2]
[346421863,1734954674903,-500.0,0.00019726,2]
[346421864,1734954674913,-500.0,0.00019726,2]
[346421865,1734954674923,-500.0,0.00019726,2]
[346421866,1734954674932,-500.0,0.00019726,2]
[346421867,1734954674941,-500.0,0.00019726,2]
[346421868,1734954674951,-500.0,0.00019726,2]
[346421869,1734954674961,-500.0,0.00019726,2]
[346421870,1734954674970,-748.45,0.00019726,2]
[346421871,1734954674980,-829.76,0.00019726,2]
[346421872,1734954674990,-399.26445758,0.00019726,2]
[346421873,1734954674999,-500.0,0.00019726,2]
[346421874,1734954675011,-500.0,0.00019726,2]
[346421875,1734954675021,-500.0,0.00019726,2]
[346421876,1734954675031,-855.21,0.00019726,2]
[346421877,1734954675040,-1661.27,0.00019726,2]
[346421878,1734954675050,-500.0,0.00019726,2]
[346421879,1734954675061,-500.0,0.00019726,2]
[346421880,1734954675071,-500.0,0.00019726,2]
[346421881,1734954675080,-500.0,0.00019726,2]
[346421882,1734954675090,-500.0,0.00019726,2]
[346421883,1734954675099,-661.37910125,0.00019726,2]
[346421884,1734954675952,-150.0,0.00018514,2]
[346421885,1734954675962,-150.0,0.00018702,2]
[346421886,1734954675971,-150.0,0.00019382,2]
[346421887,1734954675981,-251.233,0.00019451,2]
[346421888,1734954675994,-500.0,0.00019452,2]
[346421889,1734954676004,-78.38089875,0.00019726,2]
[346421890,1734954676019,-503.5354012,0.00019726,2]
[346421891,1734954676029,-500.0,0.00019726,2]
[346421892,1734954676039,-717.95,0.00019726,2]
[346421893,1734954676332,-500.0,0.00019726,2]
[346421894,1734954676342,-500.0,0.00019726,2]
[346421895,1734954676351,-500.0,0.00019726,2]
[346421896,1734954676361,-500.0,0.00019726,2]
[346421897,1734954676370,-500.0,0.00019726,2]
[346421898,1734954676379,-500.0,0.00019726,2]
[346421899,1734954676388,-765.65,0.00019726,2]
[346421900,1734954676398,-500.0,0.00019726,2]
[346421901,1734954676407,-151.0,0.00019726,2]
[346421902,1734954676417,-500.0,0.00019726,2]
[346421903,1734954676426,-3373.32,0.00019726,2]
[346421904,1734954676435,-500.0,0.00019726,2]
[346421905,1734954676444,-325.11158047,0.00019726,2]
[346421906,1734954676455,-219.03841953,0.00019726,2]
[346421907,1734954676465,-151.0,0.00019726,2]
[346421908,1734954676473,-620.58,0.00019726,2]
[346421909,1734954676483,-500.0,0.00019726,2]
[346421910,1734954676493,-500.0,0.00019726,2]
[346421911,1734954676502,-407.30054788,0.00019726,2]
[346421912,1734954676513,-92.69945212,0.00019726,2]
[346421913,1734954676522,-404.2607105,0.00019726,2]
[346421914,1734954676533,-95.7392895,0.00019726,2]
[346421915,1734954676542,-2343.34443286,0.00019726,2]
[346421916,1734954676565,-150.0,0.00019435,2]
[346421917,1734954676574,-150.0,0.00019451,2]
[346421918,1734954676583,-323.81556714,0.00019726,2]
[346421919,1734954676592,-151.0,0.00019726,2]
[346421920,1734954676600,-1964.87,0.00019726,2]
[346421921,1734954676610,-500.0,0.00019726,2]
[346421922,1734954676619,-479.43783276,0.00019726,2]